{"text_format":"3","workbook":"xlsx","n_sheets":5,"sheets":["Simulateur eau-déchets","Data","Paramètres","Vue de synthèse","Réflexion"],"not_rendered":{"images":14,"defined_names":1,"comments":1},"read":"whole","date_system":"1900"}

{"sheet":"Simulateur eau-déchets","index":0,"n_rows":44,"n_cols":8,"rows_kept":44,"merged":[[0,1,0,8],[1,1,1,2],[2,1,2,8],[14,1,14,8],[23,3,29,3],[23,4,29,4],[23,5,29,5],[23,6,29,6],[23,7,29,7],[31,3,36,3],[31,4,36,4],[31,5,36,5],[31,6,36,6],[31,7,36,7],[38,1,38,8]]}
[null,"TOOL ESTIMATION SUBSIDES ENTREPRISES - Eau/Déchets"]
[null,{"$f":"TODAY()","v":"2024-11-26"}]
[null,"Informations obligatoires pour la simulation"]
[null,null,"*","Informations obligatoires "]
[{"$nulls":3},"Informations facultatives"]
[]
[{"$nulls":3},"Taille de l'entreprise *",{"$f":"Data!B3","v":"%TailleEntreprise%"},"Catégorie de projet*",{"$f":"Data!B10","v":"%CategorieProjet%"}]
[{"$nulls":3},"Secteur ",{"$f":"Data!B4","v":"%Secteur%"},"Précision si déchets*",{"$f":"Data!B11","v":"%PrecisionDechets%"}]
[{"$nulls":3},"Fiche",{"$f":"Data!B5","v":"%Fiche%"},"Autorisation d'exploitation délivrée par la Direction des Classes Moyennes*",{"$f":"Data!B12","v":"%AutoClasseMoyenne%"}]
[{"$nulls":3},"Nom du client",{"$f":"Data!B6","v":"%NomClient%"},"Propriétaire exploitant*",{"$f":"Data!B13","v":"%PropriExploitant%"}]
[{"$nulls":3},"Nom du projet",{"$f":"Data!B7","v":"%NomProjet%"},"Montant estimatif d'investissement du projet (coût total en €HT)*",{"$f":"Data!B14","v":"%Investissement%"}]
[{"$nulls":3},"Description du projet",{"$f":"Data!B8","v":"%DescriptionProjet%"},"Des commandes sont-elles déjà passées ?*",{"$f":"Data!B15","v":"%CommandesPassees%"}]
[{"$nulls":3},"Type de projet*",{"$f":"Data!B9","v":"%TypeProjet%"}]
[]
[null,"ANALYSE DES DISPOSITIFS DE SUBVENTION APPLICABLES"]
[]
[{"$nulls":6},"Aide Temporaire Impact Environnemental","Aide Loi Environnement"]
[null,null,"Eligible ",{"$f":"\"Non\"","v":"Non"},{"$f":"\"Non\"","v":"Non"},{"$f":"IF(AND(G11>=6650,G11<=25000,G9=\"Oui\"),\"Oui\",\"Non\")","v":"Non"},{"$f":"IF(TODAY() < DATE(2024,11,15),IF(AND(G9=\"Oui\",G12=\"Non\",G11>7500,G10=\"Oui\"),\"Oui\",\"Non\"),\"Non\")","v":"Non"},{"$f":"IF(OR(G12=\"Oui\",G8=Paramètres!T5),\"Non\",\"Oui\")","v":"Oui"}]
[null,null,"Intensité maximale de l'aide/coûts éligibles","N/A","N/A","N/A",{"$f":"IF(E7=\"Petite\",70%,IF(E7=\"Moyenne\",60%,IF(E7=\"Grande\",50%)))","v":false},{"$f":"IF(E7=\"Petite\",55%,IF(E7=\"Moyenne\",45%,IF(E7=\"Grande\",35%)))","v":false}]
[null,null,"Montant estimatif ",{"$f":"IF(D18=\"Oui\",IF(#REF!=\"Non\",#REF!*25+#REF!*1.9*25,(#REF!+#REF!)*25),0)","v":{"v":0,"d":"0 €"}},{"$f":"0","v":{"v":0,"d":"0 €"}},{"$f":"IF(F18=\"Oui\",5000,0)","v":{"v":0,"d":"0 €"}},{"$f":"IF(G18=\"Oui\",MIN(100000,G19*G11),0)","v":{"v":0,"d":"0 €"}},{"$f":"IF(H18=\"Oui\",H19*(G11-H21),0)","v":{"$error":"#VALUE!"}}]
[null,null,"Montant estimatif \ncontrefactuelle","/","/","/","/",{"$f":"Data!B16","v":"%MontantContrefactuelle%"}]
[]
[{"$nulls":3},"Critères d'éligibilité","Critères d'éligibilité","Critères d'éligibilité","Critères d'éligibilité","Critères d'éligibilité"]
[{"$nulls":3},"/","/","• Etre titulaire d'une autorisation d'établissement délivrée par la Direction Générale des Petites et Moyennes Entreprises du Ministère de l'Economie ;\n• Remplir les conditions des PME en termes d'effectifs, de chiffre d'affaires annuel et de bilan annuel ;\n•  Avoir son siège social à Luxembourg \n•  Réaliser un projet d'un montant compris entre 6 650 € HTVA  et 25 000 € HTVA\n•  Nécessité d'introduire la demande avant la commande","• Etre titulaire d'une autorisation d'établissement délivrée par la Direction Générale des Classes Moyennes\n• Etre propriétaire exploitant\n• Réaliser un projet d'un montant supérieur à 7500€ HTVA\n• Nécessité d'introduire la demande avant la commande\n• La demande d’aide est à introduire au plus tard pour le 15 novembre 2024","•Etre titulaire d'une autorisation d'établissement\n•Santé financière doit être vérifiée\n• ROI minimum de 2 ans (règles internes)\n•Contribution du projet au développement économique de l'entreprise\n•Nécessité d'introduire la demande avant la commande"]
[]
[]
[]
[]
[]
[]
[{"$nulls":3},"Exclusions/Points d'attention","Exclusions/Points d'attention","Exclusions/Points d'attention","Exclusions/Points d'attention","Exclusions/Points d'attention"]
[{"$nulls":3},"/","/","\n•Ne pas déjà avoir bénéficier de 2 vouchers sustainability\n•Non cumulable avec Aide Temporaire Impact Environnemental\n•Nécessite une validation préalable du projet par l'House of Sustainability ou la Chambre des Métiers (artisans)\n","•Max 100 000€/groupe\n•L’amélioration substantielle de l’impact environnemental de l’entreprise doit être évaluée par un expert indépendant agréé en la matière.\n•Non cumulable avec voucher SME package","•Mise en conformité réglementaire\n•L'aide ne valorise que les projets qui vont au-delà du minimum réglementaire ou marché (référence contrefactuelle) et est calculé sur l'écart d'investissement associé\n•Non cumulable avec voucher SME package ou Aide Temporaire Impact Environnemental\n\nà partir de 2025\n•Réduction minimale d'énergie de 20% ou 250 MWH p.a. par rapport au scénario de référence\nL'intensité de l'aide n'excède pas 15 pour cent des coûts admissibles.\nL’intensité de l’aide peut toutefois être majorée de 10 points de pourcentage pour les \naides octroyées aux petites entreprises et de 5 points de pourcentage pour celles \noctroyées aux moyennes entreprises.\nElle peut également être majorée de 2,5 points de pourcentage pour les investissements \neffectués dans des zones assistées."]
[]
[]
[]
[]
[]
[]
[null,"AIDES RETENUES"]
[]
[{"$nulls":4},"Aide publique retenue",{"$f":"IF(F42=H20,\"Loi environnement\",IF(F42=G20,\"Aide Temporaire Environnemental\",IF(F42=F20,\"Voucher SME Package\")))","v":{"$error":"#VALUE!"}}]
[{"$nulls":4},"Montant estimatif de l'aide publique ",{"$f":"MAX(F20,G20,H20)","v":{"$error":"#VALUE!"}}]
[{"$nulls":4},"Total aide estimée",{"$f":"F42","v":{"$error":"#VALUE!"}}]
[{"$nulls":4},"Taux de couverture/investissement",{"$f":"F43/G11","v":{"$error":"#VALUE!"}}]

{"sheet":"Data","index":1,"n_rows":16,"n_cols":2,"rows_kept":16,"hidden":true}
[]
["Nom du champ","Clé"]
["Taille de l'entreprise","%TailleEntreprise%"]
["Secteur","%Secteur%"]
["Fiche","%Fiche%"]
["Nom du client","%NomClient%"]
["Nom du projet","%NomProjet%"]
["Description du projet","%DescriptionProjet%"]
["Type de projet","%TypeProjet%"]
["Catégorie de projet ED","%CategorieProjet%"]
["Précsion si déchets","%PrecisionDechets%"]
["Autorisation d'établissement délivrée par la Direction Générale des Classes Moyennes","%AutoClasseMoyenne%"]
["Propriétaire exploitant","%PropriExploitant%"]
["Montant estimatif d'investissement du projet (coût total en €HT)","%Investissement%"]
["Des commandes sont-elles déjà passées ?","%CommandesPassees%"]
["Montant estimatif référence contrefactuelle","%MontantContrefactuelle%"]

{"sheet":"Paramètres","index":2,"n_rows":159,"n_cols":23,"rows_kept":159,"hidden":true}
[]
[]
["Taille","Sorte de projet","Type de Projet","Type d'études","Thematique ","Oui/Non","Domaine techniques","Colonne1","FNN","FNN Montant","Projet d'efficacité énergétique","Projet promouvant les énergies renouvelables","Projet_de_développement","Projet_d_innovation","Domaine","Rénovation","Extension","Neuf","Environnement","Précision déchets","Electromobilité","Secteur ","% aide"]
["Petite","Rénovation","Projet_d_efficacité_énergétique et décarbonation","Bilan carbone","Efficacité énergétique","Oui","Systèmes Thermiques",null,0,null,"Air comprimé","Cogéneration à haut rendement","Projet_de_développement","Projet_d_innovation","Artisan","Projet_d_efficacité_énergétique","Projet_d_efficacité_énergétique","Projet_d_efficacité_énergétique","Projet diminuant la consommation et la pollution de l'eau","Recyclage et réemploi de déchets issus d'autres entreprise","Véhicules","Boulangerie",{"v":0.7,"d":"70%"}]
["Moyenne","Neuf","Projet_promouvant_les_énergies_renouvelables (hors PV)","Audit énergétique non obligatoire","Energies renouvelables","Non","Isolation Batiment",null,0,null,"Centres de données","Chaudières à biomasse",null,null,"Boucher","Projet_d_innovation","Projet_de_développement","Projet_de_développement","Projet favorisant le recyclage et le réemploi des déchets","Recyclage et réemploi de déchets de l'entreprise","Infrastructure de recharge","Boucherie",{"v":0.6,"d":"60%"}]
["Grande","Extension ","Projet promouvant l'efficacité énergétique des bâtiments","Etude énergétique ou décarbonation approfondie","Décarbonation",null,"Ventilation",null,0,null,"Eclairage LED","Eoliennes et parcs eoliens",null,null,"Boulanger","Projet_promouvant_les_énergies_renouvelables","Projet_d_innovation","Projet_d_innovation",{"$nulls":3},"Menuiserie",{"v":0.5,"d":"50%"}]
[{"$nulls":3},"Etude environnementale (air,eau,déchets…)","Eau",null,"Systèmes de Froid",null,0,null,"Isolation Bâtiment","Installation de biométhanisation",null,null,"Commercant","Electromobilité","Projet_promouvant_les_énergies_renouvelables","Projet_promouvant_les_énergies_renouvelables",{"$nulls":3},"Hotellerie"]
[{"$nulls":3},"Analyse cycle de vie","Déchets/Circularité",null,"Centres de données",null,0,null,"Monitoring","Installations photovoltaiques",null,null,"Garage",null,"Electromobilité","Electromobilité",{"$nulls":3},"Restaurant"]
[{"$nulls":3},"Etude de faisabilité technique","Autre",null,"Managment de l'Energie",null,1,4000,"Moteur","Installations solaires thermiques",null,null,"Hotelier",{"$nulls":6},"Commerce alimentaire"]
[{"$nulls":3},"Etude en lien avec la mobilité",null,null,"Moteur",null,0,null,"Pompe ","Pile à combustible",null,null,"Supermarché",{"$nulls":6},"Autre"]
[{"$nulls":3},"Initiation démarche environnementale/management énergie",null,null,"Pompe ",null,0,null,"Process/ Régulation","Pompes à chaleur",null,null,"Autres"]
[{"$nulls":6},"Air comprimé",null,0,null,"Systèmes de Froid","Autre"]
[{"$nulls":6},"Process/ Régulation",null,0,null,"Systèmes Thermiques"]
[{"$nulls":6},"Cogéneration à haut rendement",null,0,null,"Ventilation"]
[{"$nulls":6},"Chaudières à biomasse",null,1,1500,"Ballon thermodynamique"]
[{"$nulls":6},"Installation de biométhanisation",null,0,null,"Autre"]
[{"$nulls":6},"Pompes à chaleur air/eau ou eau/eau hors géothermie",null,0]
[{"$nulls":6},"Pompe à chaleur géothermie",null,1,2000]
[{"$nulls":6},"Eoliennes et parcs eoliens",null,0]
[{"$nulls":6},"Installations solaires thermiques",null,0]
[{"$nulls":6},"Installations photovoltaiques",null,0]
[{"$nulls":6},"Pile à combustible",null,1,1000]
[{"$nulls":6},"Ballon thermodynamique",null,1,500]
["Commerces alimentaires",{"$nulls":5},"Autre",null,0]
["Récupération de chaleur sur condenseurs pour le chauffage de l'eau chaude sanitaire (ECS)"]
["Mise en place d'une production de froid au CO2 transcritique"]
["Remplacement de meubles froid par des meubles de nouvelle génération performants"]
["Adaptation des débits de renouvellement d'air selon besoins réel grace à l'installation de sondes CO2"]
["Mise en place de films de protection solaire sur les sur surfaces vitrées"]
["Autre"]
[]
[]
["PV avec revente au prix garanti"]
["PV en autoconsommation avec rachat du surplus au prix marché (spot)"]
["PV en autoconsommation avec rachat du surplus au tarif garanti"]
[]
["Enveloppe extérieure (toiture…) ou terrain ZAE"]
["Ombrière (carport)"]
[]
["Tarifs élec garantis"]
[null,2023,2024]
["<10 kWc",0.1506,0.1417]
["10 à 30 kWc",0.1415,0.1331]
["30 à 100 kWc",0.1194,0.1101]
["100 à 200 kWc",0.115,0.106]
{"$rows_empty":10}
["Klimabonus"]
[null,{"$f":"A33","v":"PV avec revente au prix garanti"},{"$f":"A34","v":"PV en autoconsommation avec rachat du surplus au prix marché (spot)"},null,null,{"$f":"A35","v":"PV en autoconsommation avec rachat du surplus au tarif garanti"}]
[null,"Max €/kW","Max €/kW",null,null,"Max €/kW"]
["< 30/09/2024",500,{"$f":"C60*1.25","v":1562.5},null,null,500]
["> 30/09/2024",500,1250,null,null,500]
[null,"% investissement ","% investissement ",null,null,"% investissement "]
["< 30/09/2024",{"v":0.2,"d":"20.0%"},{"$f":"C63*1.25","v":{"v":0.625,"d":"62.5%"}},null,null,{"v":0.2,"d":"20.0%"}]
["> 30/09/2024",{"v":0.2,"d":"20.0%"},{"v":0.5,"d":"50.0%"},null,null,{"v":0.2,"d":"20.0%"},null,null,2023,{"$nulls":5},2024]
[]
["AO PV autoconsommation"]
[null,"Lot","Eveloppes bâtiments 2023","Eveloppes bâtiments 2024",null,"Ombrières 2023","Ombrières 2024","Innovants 2024"]
[null,null,"Max €/kW",null,null,"Max €/kW"]
["30 à 200 kW",1,745,675,null,745,990,845]
["200 à 500 kW",2,565,505,null,745,990,635]
["500 à 5000 kW",3,480,425,null,745,990,535]
[]
[]
[]
[null,null,"% investissement ","% investissement ",null,"% investissement ","% investissement ","% investissement "]
["30 à 200 kW",1,{"v":0.55,"d":"55.0%"},{"v":0.5,"d":"50.0%"},null,{"v":0.4,"d":"40.0%"},{"v":0.45,"d":"45.0%"},{"v":0.5,"d":"50.0%"}]
["200 à 500 kW",2,{"v":0.5,"d":"50.0%"},{"v":0.45,"d":"45.0%"},null,{"v":0.4,"d":"40.0%"},{"v":0.45,"d":"45.0%"},{"v":0.45,"d":"45.0%"}]
["500 à 5000 kW",3,{"v":0.45,"d":"45.0%"},{"v":0.4,"d":"40.0%"},null,{"v":0.4,"d":"40.0%"},{"v":0.45,"d":"45.0%"},{"v":0.4,"d":"40.0%"}]
{"$rows_empty":15}
["Fit 4 sustainanility "]
[]
[null,"Montant min-max"]
["Petite","7500€ à 50000€"]
["Moyenne","10000 à 100000€"]
["Grande","20000 à 200000€ "]
[]
["Durée max de l'étude ","6 mois"]
[{"$nulls":6},"7500 et non 4500€ pour petites entreprises"]
[]
[]
[]
[]
["Loi pour la protection de l'environnement "]
[]
[{"$nulls":5},"Type d'études","Loi environnement",null,"Fit 4 Sustainabiliy","FNN"]
[{"$nulls":5},"Bilan carbone","Non",null,"Oui","Oui"]
[{"$nulls":5},"Audit énergétique non obligatoire","Non",null,"Oui","Oui"]
[{"$nulls":5},"Etude énergétique ou décarbonation approfondie","Non",null,"Oui","Oui"]
[{"$nulls":5},"Etude environnementale (air,eau,déchets…)","Non",null,"Oui","Oui"]
[{"$nulls":5},"Analyse cycle de vie","Non",null,"Oui","Oui"]
[{"$nulls":5},"Etude de faisabilité technique","Oui",null,"Non","Non"]
[{"$nulls":5},"Etude en lien avec la mobilité","Non",null,"Oui","Oui"]
[{"$nulls":5},"Initiation démarche environnementale/management énergie","Non",null,"Oui","Non"]
{"$rows_empty":30}
["Aide temporaire impact environnemental"]
{"$rows_empty":11}
["Fin dispositif Aide Temporaire : ",null,"2024-11-15"]

{"sheet":"Vue de synthèse","index":3,"n_rows":0,"n_cols":0,"rows_kept":0,"hidden":true}

{"sheet":"Réflexion","index":4,"n_rows":20,"n_cols":4,"rows_kept":20,"hidden":true}
["Evaluation"]
[]
["Loi environnement avec contrefactuelle","Taux max","Ecart à la contrefactuelle min","Aide Loi environnement "]
["Petite ",{"v":0.7,"d":"70%"},{"$f":"$B$9/B4","v":{"v":7142.857142857143,"d":"7,143 €"}},{"$f":"C4*B4","v":{"v":5000,"d":"5,000 €"}}]
["Moyenne ",{"v":0.6,"d":"60%"},{"$f":"$B$9/B5","v":{"v":8333.333333333334,"d":"8,333 €"}},{"$f":"C5*B5","v":{"v":5000,"d":"5,000 €"}}]
["Grande ",{"v":0.5,"d":"50%"},{"v":10000,"d":"10,000 €"},{"v":5000,"d":"5,000 €"}]
[]
["Voucher SME Package",null,"Couverture investissement par voucher"]
["Montant voucher",{"v":5000,"d":"5,000 €"}]
["Min",{"v":6650,"d":"6,650 €"},{"$f":"B9/B10","v":{"v":0.7518796992481203,"d":"75%"}}]
["Max ",{"v":25000,"d":"25,000 €"},{"$f":"B9/B11","v":{"v":0.2,"d":"20%"}}]
[]
[]
["Loi environnement avec Investissement distinct ou aide temporaire"]
[]
["Loi env ou aide temp + intéressant que voucher si investissement min",{"$f":"C4","v":{"v":7142.857142857143,"d":"7,143 €"}},"Petite entreprise"]
["Loi env ou aide temp + intéressant que voucher si investissement min",{"$f":"C5","v":{"v":8333.333333333334,"d":"8,333 €"}},"Moyenne entreprise"]
[]
["Investissement max (aboutissant à une aide de 100 000€)",{"$f":"100000/0.7","v":{"v":142857.14285714287,"d":"142,857 €"}},"Petite entreprise"]
["Investissement max (aboutissant à une aide de 100 000€)",{"$f":"100000/0.6","v":{"v":166666.6666666667,"d":"166,667 €"}},"Moyenne entreprise"]